bitfinex-derivatives/quotes_ETHF0:USTF0_20250909
["timestamp","ask_amount","ask_price","bid_price","bid_amount"]
[1757456618209,1.22831694,4313.5,4313.4,0.4064]
[1757456618909,0.4123,4313.1,4313.0,1.87621497]
[1757456619210,0.7352,4313.1,4313.0,1.87621497]
[1757456619713,0.7352,4313.1,4313.0,2.18311497]
[1757456619915,0.7352,4313.1,4313.0,2.38011497]
[1757456620214,0.7352,4313.1,4313.0,0.7133]
[1757456626012,0.3229,4313.1,4313.0,0.7133]
[1757456626214,0.7574,4313.4,4313.3,0.4064]
[1757456626517,0.7574,4313.4,4313.3,0.7133]
[1757456626707,0.9682,4313.4,4313.3,0.7133]
[1757456627218,0.3094,4313.7,4313.3,0.7133]
[1757456627414,0.3094,4313.7,4313.4,0.3229]
[1757456627609,0.3094,4313.7,4313.6,0.7282]
[1757456628618,0.5187,4313.7,4313.6,0.7282]
[1757456637228,0.7517,4313.7,4313.6,0.7282]
[1757456640131,0.9499,4313.7,4313.6,0.7282]
[1757456653131,0.7169,4313.7,4313.6,0.7282]
[1757456657243,0.7169,4313.7,4313.6,2.39501497]
[1757456661040,0.5187,4313.7,4313.6,2.39501497]
[1757456662344,0.7156,4313.7,4313.6,2.07211497]
[1757456662648,0.2921,4313.6,4313.5,1.66681497]
[1757456662846,0.6944,4313.6,4313.5,1.66681497]
[1757456668450,0.6944,4313.6,4313.5,1.87871497]
[1757456671251,0.6944,4313.6,4313.5,2.18841497]
[1757456672058,0.1256,4313.5,4313.4,1.66681497]
[1757456672258,0.4023,4313.3,4313.2,1.66681497]
[1757456672455,0.2921,4313.2,4313.1,0.2119]
[1757456672663,0.6944,4313.2,4313.1,0.5216]
[1757456672954,0.6944,4313.2,4313.1,0.7338]
[1757456673153,0.4975,4313.2,4313.1,0.7338]
[1757456675870,0.2921,4313.2,4313.1,0.7338]
[1757456676368,0.4975,4313.2,4313.1,0.7338]
[1757456676569,0.6944,4313.2,4313.1,0.7338]
[1757456682073,0.6944,4313.2,4313.1,0.4241]
[1757456683176,0.6944,4313.2,4313.1,0.7338]
[1757456683363,0.6944,4313.2,4312.8,0.3097]
[1757456683566,0.5279,4313.0,4312.9,0.2119]
[1757456683765,0.5279,4313.0,4312.7,2.0841315]
[1757456684070,0.82,4313.0,4312.8,1.66565576]
[1757456684270,0.2921,4312.9,4312.8,1.66565576]
[1757456684477,0.6944,4312.9,4312.8,1.66565576]
[1757456684779,0.2921,4312.8,4312.7,1.66565576]
[1757456684972,0.6944,4312.8,4312.7,1.66565576]
[1757456685178,0.2921,4312.7,4312.6,1.66565576]
[1757456685376,0.6944,4312.7,4312.6,1.87755576]
[1757456685581,0.6944,4312.7,4312.6,2.18725576]
[1757456686075,0.6944,4312.7,4312.6,0.7338]
[1757456686277,0.6944,4312.7,4312.6,2.39864712]
[1757456686477,0.6944,4312.7,4312.6,0.7338]
[1757456686972,0.6944,4312.7,4312.6,2.39861407]
[1757456687679,0.6944,4312.7,4312.6,2.398424]
[1757456688178,0.6944,4312.7,4312.6,2.39821378]
[1757456689277,0.6944,4312.7,4312.6,2.08851378]
[1757456691478,0.6944,4312.7,4312.6,2.39601378]
[1757456691675,0.4975,4312.7,4312.6,2.39601378]
[1757456696490,0.2921,4312.7,4312.6,2.39601378]
[1757456696690,0.7319,4313.4,4313.3,0.7228]
[1757456696878,1.30350916,4313.4,4313.3,0.7228]
[1757456697078,1.07165916,4313.4,4313.3,0.7228]
[1757456698092,1.07165916,4313.4,4313.3,0.4153]
[1757456698992,1.07165916,4313.4,4313.3,0.2055]
[1757456700890,0.83865916,4313.4,4313.3,0.7228]
[1757456701192,1.07165916,4313.4,4313.3,0.7228]
[1757456701394,1.07165916,4313.4,4313.3,0.4153]
[1757456703795,1.07165916,4313.4,4313.3,0.2055]
[1757456705495,0.83865916,4313.4,4313.3,0.7228]
[1757456705697,0.64055916,4313.4,4313.3,0.7228]
[1757456705898,0.83865916,4313.4,4313.3,0.7228]
[1757456714507,0.2975,4313.3,4313.0,1.66441378]
[1757456714702,0.3586,4313.5,4313.0,2.17741378]
[1757456714703,0.697,4313.1,4313.0,2.17741378]
[1757456714899,0.697,4313.1,4313.0,2.38721378]
[1757456717012,0.4989,4313.1,4313.0,2.38721378]
[1757456717199,0.303,4313.4,4313.0,2.19291378]
[1757456717399,0.44484122,4313.3,4313.2,0.4068]
[1757456717603,0.65284122,4313.3,4313.2,0.7059]
[1757456721107,0.86684122,4313.3,4313.2,0.7059]
[1757456723314,0.86684122,4313.3,4313.2,0.4068]
[1757456723919,0.86684122,4313.3,4313.2,0.2102]
[1757456724419,0.303,4313.2,4313.0,1.66441378]
[1757456724724,0.8428,4313.0,4312.9,1.87461378]
[1757456728230,0.8428,4313.0,4312.9,2.37031378]
[1757456730124,0.725,4313.0,4312.9,2.37031378]
[1757456730321,0.511,4313.0,4312.9,2.37031378]
[1757456732528,0.744,4313.4,4313.3,0.4068]
[1757456732735,0.8858876,4313.4,4313.3,0.7059]
[1757456733634,0.6528876,4313.4,4313.3,0.7059]
[1757456734927,0.4448876,4313.4,4313.3,0.7059]
[1757456735722,0.6528876,4313.4,4313.3,0.7059]
[1757456741329,0.8668876,4313.4,4313.3,0.7059]
[1757456741532,0.8668876,4313.4,4313.3,0.4068]
[1757456744039,0.8668876,4313.4,4313.3,0.2102]
[1757456744632,0.725,4313.1,4313.0,1.66441378]
[1757456744838,0.8428,4313.0,4312.9,1.66441378]
[1757456745842,0.8428,4313.0,4312.9,1.87461378]
[1757456746846,0.8428,4313.0,4312.9,2.18341378]
[1757456747046,0.535,4313.2,4313.0,0.3088]
[1757456747246,0.535,4313.2,4313.1,0.7108]
[1757456748641,0.302,4313.2,4313.1,0.7108]
[1757456749648,0.302,4313.4,4313.1,0.402]
[1757456749945,0.65602428,4313.3,4313.2,0.7108]
[1757456750944,0.5161,4313.3,4313.2,0.7108]
[1757456752134,0.302,4313.3,4313.2,0.7108]
[1757456752748,0.5161,4313.3,4313.2,0.7108]
[1757456759449,0.7298,4313.3,4313.2,0.7108]
[1757456760053,0.86972982,4313.3,4313.2,0.7108]
[1757456761050,0.86972982,4313.3,4313.2,0.402]
[1757456761943,0.86972982,4313.3,4313.2,0.7108]
[1757456764555,0.86972982,4313.3,4313.2,0.402]
[1757456765159,0.7298,4313.1,4313.0,1.66441378]
[1757456765554,0.8465,4313.0,4312.9,1.66441378]
[1757456766549,0.8465,4313.0,4312.9,2.37521378]
[1757456775960,0.8465,4313.0,4312.9,1.66441378]
[1757456776155,0.5161,4312.9,4312.8,1.66441378]
[1757456776360,0.7298,4312.9,4312.8,1.66441378]
[1757456777059,0.7298,4312.9,4312.8,1.86861378]
[1757456779051,0.96167001,4312.9,4312.7,1.66441378]
[1757456779255,0.4102,4312.4,4312.0,1.66441378]
[1757456779456,0.7209,4312.1,4312.0,2.19021378]
[1757456780263,0.7209,4312.1,4312.0,0.2042]
[1757456781955,0.4102,4311.9,4311.8,1.86861378]
[1757456782160,0.7209,4311.9,4311.8,1.86861378]
[1757456782359,0.7209,4311.9,4311.8,0.739]
[1757456784670,0.7209,4311.9,4311.8,0.4174]
[1757456785062,0.7209,4311.9,4311.8,0.739]
[1757456786169,0.7209,4311.9,4311.8,0.739]
[1757456788671,0.4102,4311.9,4311.5,1.66441378]
[1757456788869,0.7209,4311.6,4311.3,1.66441378]
[1757456789068,0.23193001,4311.9,4311.3,1.66441378]
[1757456789069,0.7209,4311.4,4311.3,0.2042]
[1757456789264,0.7209,4311.4,4311.3,0.5258]
[1757456789665,0.7209,4311.4,4311.3,0.739]
[1757456793473,0.5208,4311.4,4311.3,0.739]
[1757456794163,0.7209,4311.4,4311.3,0.739]
[1757456798481,0.5208,4311.4,4311.3,0.739]
[1757456805783,0.7209,4311.4,4311.3,0.739]
[1757456806184,0.5208,4311.4,4311.3,2.40341378]
[1757456806485,0.7209,4311.4,4311.3,2.40341378]
[1757456808188,0.7209,4311.4,4311.3,0.739]
[1757456821593,0.2971,4311.3,4311.1,2.0841315]
[1757456821791,0.8223,4311.0,4310.9,2.7873315]
[1757456822190,0.7046,4311.0,4310.9,2.7873315]
[1757456822596,0.7046,4311.0,4310.9,0.7032]
[1757456823894,0.4949,4311.0,4310.9,0.7032]
[1757456826293,0.2971,4311.0,4310.9,0.7032]
[1757456826796,0.2971,4311.4,4311.0,0.2947]
[1757456827000,0.7046,4311.4,4311.3,2.3698361]
[1757456827799,0.4949,4311.4,4311.3,2.3698361]
[1757456840201,0.4949,4311.4,4311.3,0.7032]
[1757456850009,0.2971,4311.4,4311.3,0.7032]
[1757456850205,0.233,4311.5,4311.3,0.7032]
[1757456850407,0.5549,4311.5,4311.4,2.37697688]
[1757456850606,0.7565,4311.5,4311.4,2.37697688]
[1757456854409,0.9539,4311.5,4311.4,2.37697688]
[1757456864022,0.9539,4311.5,4311.4,0.7104]
[1757456866523,0.7209,4311.5,4311.4,0.7104]
[1757456866719,0.9539,4311.5,4311.4,0.7104]
[1757456867821,0.9539,4311.5,4311.4,1.02638581]
[1757456868319,1.0732,4311.5,4311.4,1.98293502]
[1757456871424,1.0732,4311.5,4311.4,2.18033502]
[1757456871624,0.233,4311.5,4311.4,1.98293502]
[1757456871818,0.233,4311.5,4311.4,2.18033502]
[1757456871819,1.0397,4311.5,4311.4,2.18033502]
[1757456873627,1.41114201,4311.5,4311.4,0.51339726]
[1757456873923,1.17920201,4311.5,4311.4,0.51339726]
[1757456875329,0.37250201,4311.5,4311.4,0.31599726]
[1757456876228,0.233,4311.5,4311.4,0.31599726]
[1757456878728,33.41,4312.3,4311.4,0.31599726]
[1757456878922,1.13131573,4312.2,4311.5,0.31599726]
[1757456879123,0.66639573,4312.1,4311.6,0.31599726]
[1757456879325,0.66639573,4312.0,4311.7,0.31599726]
[1757456879526,0.66639573,4311.9,4311.8,0.31599726]
[1757456879829,0.89831987,4311.9,4311.8,0.31584315]
[1757456880430,1.13131987,4311.9,4311.8,0.31584315]
[1757456880728,0.89938986,4311.9,4311.8,0.31584315]
[1757456881130,1.13130986,4311.9,4311.8,0.31584315]
[1757456881629,1.13130986,4311.9,4311.1,1.66693776]
[1757456881822,0.89938986,4311.8,4310.9,1.66693776]
[1757456882019,0.66638986,4311.7,4310.9,1.66693776]
[1757456882331,0.233,4311.8,4310.8,1.66693776]
[1757456882332,0.66627702,4311.6,4310.8,1.66693776]
[1757456882526,0.13944297,4311.5,4310.8,1.66693776]
[1757456882730,0.13944297,4311.4,4310.8,1.66693776]
[1757456882928,0.37244297,4311.3,4310.8,1.66693776]
[1757456883123,0.233,4311.2,4310.8,1.66693776]
[1757456883329,0.233,4311.1,4310.8,1.66693776]
[1757456883632,0.233,4311.0,4310.8,1.66693776]
[1757456883832,0.233,4311.0,4310.7,1.66693776]
[1757456886832,0.233,4310.9,4310.7,1.66693776]
[1757456887832,33.41,4312.3,4310.7,1.66693776]
[1757456888029,1.13078881,4312.2,4310.7,1.66693776]
[1757456888230,0.66584881,4312.1,4310.7,1.66693776]
[1757456888433,0.66584881,4312.0,4310.7,1.66693776]
[1757456888626,0.89779882,4311.9,4310.7,1.66693776]
[1757456888833,0.66584881,4311.8,4310.7,1.66693776]
[1757456889032,0.13933253,4311.7,4310.7,1.66693776]
[1757456889234,0.37233253,4311.6,4310.7,1.66693776]
[1757456889534,0.13933253,4311.5,4310.7,1.66693776]
[1757456889731,0.13933253,4311.4,4310.7,1.66693776]
[1757456889930,0.233,4311.6,4310.7,1.66693776]
[1757456890131,0.13931954,4311.5,4310.7,1.66693776]
[1757456890333,0.13931954,4311.4,4310.7,1.66693776]
[1757456890534,0.233,4311.6,4310.7,1.66693776]
[1757456890836,0.13931729,4311.5,4310.7,1.66693776]
[1757456891043,0.13931729,4311.4,4310.7,1.66693776]
[1757456891231,0.233,4311.6,4310.7,1.66693776]
[1757456891432,0.13931504,4311.5,4310.7,1.66693776]
[1757456891636,0.13931504,4311.4,4310.7,1.66693776]
[1757456891838,0.233,4311.6,4310.7,1.66693776]
[1757456892038,0.13931865,4311.5,4310.7,1.66693776]
[1757456892243,0.233,4311.6,4310.5,1.66693776]
[1757456892244,0.13931865,4311.4,4310.5,1.66693776]
[1757456892541,0.13931865,4311.3,4310.5,1.66693776]
[1757456892842,0.13931865,4311.2,4310.5,1.66693776]
[1757456893030,0.233,4311.6,4310.5,1.66693776]
[1757456893234,0.13932088,4311.5,4310.5,1.66693776]
[1757456893434,0.13932088,4311.4,4310.5,1.66693776]
[1757456893742,0.13932088,4311.3,4310.5,1.66693776]
[1757456893941,0.233,4311.6,4310.5,1.66693776]
[1757456894240,0.13931493,4311.5,4310.5,1.66693776]
[1757456894438,0.13931493,4311.4,4310.5,1.66693776]
[1757456894634,0.13931493,4311.3,4310.5,1.66693776]
[1757456894835,0.233,4311.6,4310.5,1.66693776]
[1757456895134,0.13931257,4311.5,4310.5,1.66693776]
[1757456895336,0.13931257,4311.4,4310.5,1.66693776]
[1757456895536,0.13931257,4311.3,4310.5,1.66693776]
[1757456895738,0.233,4311.6,4310.5,1.66693776]
[1757456896037,0.13931248,4311.5,4310.5,1.66693776]
[1757456896237,0.13931248,4311.4,4310.5,1.66693776]
[1757456896438,0.13931248,4311.3,4310.5,1.66693776]
[1757456896636,0.46496,4311.6,4310.5,1.66693776]
[1757456896939,0.13931302,4311.5,4310.5,1.66693776]
[1757456897141,0.13931302,4311.4,4310.5,1.66693776]
[1757456897339,0.13931302,4311.3,4310.5,1.66693776]
[1757456897637,0.46496,4311.6,4310.5,1.66693776]
[1757456897840,0.13931748,4311.5,4310.5,1.66693776]
[1757456898339,0.233,4311.4,4310.5,1.66693776]
[1757456898642,0.13931748,4311.3,4310.5,1.66693776]
[1757456898845,0.233,4311.4,4310.5,1.66693776]
[1757456899043,0.37231017,4311.3,4310.5,1.66693776]
[1757456899344,0.13931524,4311.2,4310.5,1.66693776]
[1757456899543,0.233,4311.3,4310.6,1.66693776]
[1757456903347,0.13935876,4311.2,4310.6,1.66693776]
[1757456903646,0.233,4311.3,4310.6,1.66693776]
[1757456903943,0.13935876,4311.2,4310.6,1.66693776]
[1757456904139,0.233,4311.3,4310.6,1.66693776]
[1757456904339,0.13936716,4311.2,4310.6,1.66693776]
[1757456904546,0.233,4311.3,4310.6,1.66693776]
[1757456904843,0.13936716,4311.2,4310.6,1.66693776]
[1757456905043,0.233,4311.3,4310.6,1.66693776]
[1757456905243,0.13936716,4311.2,4310.6,1.66693776]
[1757456905442,0.233,4311.3,4310.6,1.66693776]
[1757456905647,0.13937735,4311.2,4310.6,1.66693776]
[1757456905842,0.233,4311.3,4310.6,1.66693776]
[1757456906040,0.13937735,4311.2,4310.6,1.66693776]
[1757456906243,0.233,4311.3,4310.7,1.66693776]
[1757456906444,0.13938979,4311.2,4310.7,1.66693776]
[1757456906646,0.233,4311.3,4310.7,1.66693776]
[1757456906848,0.13938979,4311.2,4310.7,1.66693776]
[1757456907149,0.233,4311.3,4310.7,1.66693776]
[1757456907350,0.13940595,4311.2,4310.7,1.66693776]
[1757456907553,0.233,4311.3,4310.7,1.66693776]
[1757456907753,0.13940493,4311.2,4310.7,1.66693776]
[1757456907953,0.233,4311.3,4310.7,1.66693776]
[1757456908154,0.13940493,4311.2,4310.7,1.66693776]
[1757456908455,0.233,4311.3,4310.7,1.66693776]
[1757456908655,0.13942322,4311.2,4310.7,1.66693776]
[1757456908844,0.233,4311.3,4310.7,1.66693776]
[1757456909048,0.13942322,4311.2,4310.7,1.66693776]
[1757456909249,0.233,4311.3,4310.7,1.66693776]
[1757456909453,0.13944755,4311.2,4310.7,1.66693776]
[1757456909653,0.233,4311.3,4310.7,1.66693776]
[1757456909953,0.13944732,4311.2,4310.7,1.66693776]
[1757456910154,0.233,4311.3,4310.7,1.66693776]
[1757456910454,0.13944848,4311.2,4310.7,1.66693776]
[1757456910653,0.233,4311.3,4310.7,1.66693776]
[1757456910855,0.13944859,4311.2,4310.7,1.66693776]
[1757456911058,0.233,4311.1,4310.9,1.66693776]
[1757456911263,0.233,4311.3,4311.0,1.66445125]
[1757456913355,33.41,4312.3,4311.0,1.66445125]
[1757456913565,1.13159581,4312.2,4311.0,1.66445125]
[1757456913863,0.6666658,4312.1,4311.0,1.66445125]
[1757456914063,0.6666658,4312.0,4311.0,1.66445125]
[1757456914264,0.6666658,4311.9,4311.0,1.66445125]
[1757456914461,0.6666658,4311.8,4311.0,1.66445125]
[1757456914662,0.37241816,4311.7,4311.1,1.66445125]
[1757456914956,0.13941816,4311.6,4311.1,1.66445125]
[1757456915157,0.233,4311.7,4311.1,1.66445125]
[1757456915459,0.13938736,4311.6,4311.1,1.66445125]
[1757456915659,0.233,4311.7,4311.1,1.66445125]
[1757456915859,0.13938736,4311.6,4311.1,1.66445125]
[1757456916060,33.41,4312.3,4311.1,1.66445125]
[1757456916363,0.8995039,4312.2,4311.1,1.66445125]
[1757456916565,0.6665039,4312.1,4311.2,0.23193]
[1757456916767,0.13937143,4312.0,4311.2,1.89638125]
[1757456916960,0.13937143,4311.9,4311.2,1.66445125]
[1757456917265,0.13937143,4311.8,4311.2,1.66445125]
[1757456917466,0.233,4312.2,4311.3,1.66445125]
[1757456917668,0.13933607,4312.1,4311.3,1.66445125]
[1757456917868,0.13933607,4312.0,4311.3,1.66445125]
[1757456918165,0.13933607,4311.9,4311.2,1.66445125]
[1757456918360,0.233,4311.8,4311.2,1.66445125]
[1757456923171,0.233,4311.8,4311.1,1.66445125]
[1757456933179,0.233,4311.8,4311.2,1.66445125]
[1757456935181,0.4462,4311.8,4311.7,0.4059]
[1757456935479,0.4462,4311.8,4311.7,0.7001]
[1757456935778,0.748,4311.8,4311.7,0.7001]
[1757456941184,0.515,4311.8,4311.7,0.7001]
[1757456941489,0.748,4311.8,4311.7,0.7001]
[1757456942183,1.0913315,4311.8,4311.7,0.7001]
[1757456956594,1.09141669,4311.8,4311.7,0.7001]
[1757456967400,0.8597,4311.5,4311.4,2.37045125]
[1757456967897,0.7377,4311.5,4311.4,2.37045125]
[1757456975907,0.8597,4311.5,4311.4,2.37045125]
[1757456978605,0.8597,4311.5,4311.4,1.66445125]
[1757456978812,0.25769666,4311.5,4311.0,1.66445125]
[1757456979004,0.7377,4311.1,4311.0,1.66445125]
[1757456979206,0.7377,4311.1,4310.8,0.3026]
[1757456979207,0.122,4311.0,4310.9,1.86255125]
[1757456979508,0.8597,4311.0,4310.9,1.86255125]
[1757456979710,0.8597,4311.0,4310.9,2.16515125]
[1757456980210,0.8597,4311.0,4310.9,0.1981]
[1757456983113,0.5458,4311.0,4310.7,1.66445125]
[1757456983305,0.3139,4310.9,4310.8,0.1981]
[1757456983505,0.7377,4310.9,4310.8,0.1981]
[1757456984607,0.7377,4310.9,4310.8,0.5007]
[1757456985719,0.7377,4310.9,4310.8,0.1981]
[1757456985914,0.4238,4310.9,4310.6,1.66445125]
[1757456986215,0.7377,4310.7,4310.6,1.66445125]
[1757456986413,0.7377,4310.7,4310.6,1.86255125]
[1757456987414,0.7377,4310.7,4310.6,2.37705125]
[1757456988216,0.7377,4310.7,4310.6,0.7126]
[1757456991921,0.122,4311.5,4311.4,0.7093]
[1757456991922,0.517,4311.5,4311.4,0.7093]
[1757456992119,0.75,4311.5,4311.4,0.7093]
[1757456992621,1.2001759,4311.5,4311.4,0.7093]
[1757456996822,1.2001759,4311.5,4311.4,0.4039]
[1757456997028,1.2001759,4311.5,4310.7,1.66234263]
[1757456997332,0.1982,4310.9,4310.8,0.7093]
[1757456997526,0.5086,4310.9,4310.8,0.7093]
[1757457000224,0.7054,4310.9,4310.7,1.66234263]
[1757457000523,0.7054,4310.8,4310.7,0.1948]
[1757457001030,0.9384,4310.8,4310.7,0.7093]
[1757457002225,0.9384,4310.8,4310.7,2.37164263]
[1757457006231,0.9384,4310.8,4310.7,0.7093]
[1757457013936,0.9384,4310.8,4310.7,0.4039]
[1757457015435,0.9384,4310.8,4310.7,0.7093]
[1757457017436,0.5361,4311.0,4310.9,0.4129]
[1757457017744,0.7419,4311.0,4310.9,2.40146377]
[1757457019341,0.9426,4311.0,4310.9,2.40146377]
[1757457019543,1.0664,4311.0,4310.9,2.40146377]
[1757457021556,1.0664,4311.0,4310.9,1.66586377]
[1757457023058,1.0664,4311.0,4310.9,1.87956377]
[1757457023259,0.8334,4311.0,4310.9,2.40146377]
[1757457023659,0.7096,4311.0,4310.9,2.40146377]
[1757457024057,0.6309,4311.5,4311.4,0.2137]
[1757457024361,1.20459815,4311.5,4311.4,0.2137]
[1757457025764,1.20459815,4311.5,4311.1,0.3227]
[1757457025954,0.4065,4311.2,4311.1,0.5364]
[1757457026159,0.7096,4311.2,4311.1,0.5364]
[1757457026457,0.7096,4311.2,4311.1,0.2137]
[1757457026658,0.355,4311.5,4311.0,1.87983018]
[1757457026659,0.3031,4311.1,4311.0,1.87983018]
[1757457026963,0.7096,4311.1,4311.0,0.7356]
[1757457027262,0.7096,4311.1,4311.0,2.40173018]
[1757457034762,0.3031,4311.4,4311.1,0.3227]
[1757457034968,0.5361,4311.4,4311.3,0.7356]
[1757457035268,0.88189995,4311.4,4311.3,0.7356]
[1757457035565,0.30657774,4311.7,4311.3,0.7356]
[1757457035865,0.51237774,4311.7,4311.6,0.7356]
[1757457036261,0.51237774,4311.7,4311.4,0.5364]
[1757457036262,0.5303,4311.5,4311.4,0.5364]
[1757457036456,0.5303,4311.5,4311.2,1.66613018]
[1757457036457,0.3031,4311.4,4311.2,1.66613018]
[1757457036660,0.4065,4311.2,4311.1,1.66613018]
[1757457036862,0.7096,4311.2,4311.1,1.66613018]
[1757457038371,0.7096,4311.2,4311.0,1.66613018]
[1757457038667,0.7096,4311.1,4311.0,1.87983018]
[1757457039561,0.7096,4311.1,4311.0,0.2137]
[1757457039968,0.4065,4310.9,4310.8,1.87983018]
[1757457040267,0.7096,4310.9,4310.8,1.66613018]
[1757457040865,0.4065,4310.7,4310.6,1.87983018]
[1757457041163,0.7096,4310.7,4310.6,1.87983018]
[1757457042071,0.7096,4310.7,4310.6,2.20253018]
[1757457043173,0.7096,4310.7,4310.6,2.40173018]
[1757457046769,0.5089,4310.7,4310.6,2.40173018]
[1757457047371,0.5089,4310.7,4310.4,0.00347774]
[1757457047372,0.8376,4310.5,4310.4,0.00347774]
[1757457047573,0.7209,4310.4,4309.9,0.301]
[1757457047766,0.7209,4310.4,4309.0,0.1121]
[1757457047767,0.3119,4310.2,4309.6,0.301]
[1757457048075,0.86080983,4310.1,4310.0,0.7123]
[1757457048274,0.7209,4310.1,4310.0,0.7123]
[1757457048574,0.7209,4310.1,4310.0,0.4113]
[1757457048874,0.7209,4310.1,4310.0,0.2027]
[1757457049670,0.7209,4310.1,4309.7,0.301]
[1757457049972,0.3497,4310.5,4309.7,0.301]
[1757457049973,0.7209,4309.8,4309.7,0.5037]
[1757457050173,0.7209,4309.8,4309.7,0.7123]
[1757457051364,0.7209,4309.8,4309.7,0.4113]
[1757457051569,0.7209,4309.8,4309.7,0.2027]
[1757457053277,0.7209,4309.8,4309.7,0.5037]
[1757457053677,0.7209,4309.8,4309.7,0.7123]
[1757457061280,0.3119,4310.4,4310.3,0.7123]
[1757457061476,0.3119,4310.9,4310.8,0.4113]
[1757457061779,0.5138,4310.9,4310.8,0.7123]
[1757457063085,0.7488,4310.9,4310.8,0.7123]
[1757457070687,0.9559,4310.9,4310.8,0.7123]
[1757457072983,0.235,4310.9,4310.2,1.66613018]
[1757457073193,0.644,4310.9,4310.8,0.7123]
[1757457073589,0.9559,4310.9,4310.8,0.7123]
[1757457076585,0.7488,4310.9,4310.8,0.7123]
[1757457078185,0.9559,4310.9,4310.8,0.7123]
[1757457078988,0.7209,4310.9,4310.8,0.7123]
[1757457086897,0.235,4311.2,4310.8,0.7123]
[1757457087195,0.00347774,4311.7,4311.6,0.3969]
[1757457087196,0.19847774,4311.7,4311.6,0.3969]
[1757457087498,0.19847774,4311.7,4311.6,0.7141]
[1757457087697,0.50727774,4311.7,4311.6,0.7141]
[1757457091995,0.31227774,4311.7,4311.6,0.7141]
[1757457092300,0.00347774,4311.7,4311.6,0.7141]
[1757457094586,0.00347774,4311.7,4311.6,0.94603]
[1757457094791,0.00347774,4311.7,4311.6,0.7141]
[1757457106207,0.3088,4312.2,4311.6,0.7141]
[1757457106401,0.234,4312.1,4311.6,0.3969]
[1757457106707,0.3088,4312.0,4311.9,0.3984]
[1757457106907,0.3088,4312.0,4311.9,0.6898]
[1757457107205,0.5141,4312.0,4311.9,0.6898]
[1757457108010,0.3088,4312.0,4311.9,0.6898]
[1757457110601,0.5141,4312.0,4311.9,0.6898]
[1757457116211,0.5141,4312.0,4311.9,2.35593018]
[1757457117212,0.5141,4312.0,4311.9,0.6898]
[1757457118506,0.234,4312.2,4311.9,0.6898]
[1757457118716,0.3017,4312.4,4312.1,0.2914]
[1757457119006,33.409,4313.4,4313.3,0.4949]
[1757457119007,0.9376,4313.4,4313.3,0.4949]
[1757457119211,0.9376,4313.4,4313.0,0.2914]
[1757457120416,0.6359,4313.4,4312.9,0.2914]
[1757457120616,0.7036,4313.3,4313.2,0.2035]
[1757457121215,0.831,4313.0,4312.9,0.6898]
[1757457132928,0.7036,4313.0,4312.9,0.6898]
[1757457135626,0.3017,4313.0,4312.9,0.6898]
[1757457135823,0.1249,4313.5,4313.3,0.3984]
[1757457135824,0.2053,4313.4,4313.3,0.3984]
[1757457136022,0.507,4313.4,4313.3,0.6898]
[1757457136230,0.7036,4313.4,4313.3,0.6898]
[1757457136539,0.507,4313.4,4313.3,0.6898]
[1757457144541,0.1249,4314.0,4313.3,0.6898]
[1757457144846,0.1249,4314.0,4313.0,1.77473515]
[1757457144847,0.5151,4313.9,4313.8,0.7306]
[1757457146143,0.3033,4313.9,4313.8,2.39323515]
[1757457147346,0.5151,4313.9,4313.8,0.7306]
[1757457148245,0.5151,4313.9,4313.8,2.39323515]
[1757457148647,0.5151,4314.0,4313.9,0.5293]
[1757457148946,0.5151,4314.0,4313.9,0.7306]
[1757457151041,0.3033,4314.3,4314.0,0.3166]
[1757457151238,33.406,4314.4,4314.3,0.7306]
[1757457151239,33.6178,4314.4,4314.3,0.7306]
[1757457151640,0.5151,4314.4,4314.3,0.7306]
[1757457153149,0.3033,4314.4,4314.3,0.7306]
[1757457153654,0.3033,4314.9,4314.3,0.414]
[1757457153846,0.7111,4314.9,4314.8,0.7306]
[1757457159451,0.7111,4314.9,4314.8,0.414]
[1757457159646,0.7111,4314.9,4314.8,0.2013]
[1757457159849,0.2118,4314.3,4314.2,0.5179]
[1757457160057,0.7111,4314.3,4314.2,0.96236999]
[1757457160954,0.7111,4314.3,4314.2,0.7306]
[1757457161447,0.5151,4314.3,4314.2,0.7306]
[1757457161850,0.3033,4314.3,4314.2,0.7306]
[1757457162845,0.5151,4314.3,4314.2,0.7306]
[1757457163254,0.3033,4314.9,4314.2,0.414]
[1757457163447,0.3033,4314.9,4314.3,0.3166]
[1757457163847,0.5151,4314.4,4314.3,0.7306]
[1757457165150,0.3604,4315.5,4314.8,0.2013]
[1757457165151,0.7111,4314.9,4314.8,0.2013]
[1757457165350,0.7111,4314.9,4314.8,0.5179]
[1757457165750,0.7111,4314.9,4314.8,0.2013]
[1757457166757,0.7111,4314.9,4314.8,0.5126]
[1757457168262,0.7111,4314.9,4314.8,0.7219]
[1757457168462,0.5151,4314.9,4314.8,0.7219]
[1757457168765,0.3033,4314.9,4314.8,0.7219]
[1757457169157,0.5092,4314.9,4314.8,0.7219]
[1757457173557,0.7152,4314.9,4314.8,0.7219]
[1757457180369,0.7152,4314.9,4314.8,2.38453515]
[1757457182164,0.7152,4314.9,4314.8,1.66263515]
[1757457182368,0.2928,4314.8,4314.7,1.66263515]
[1757457182672,0.7047,4314.4,4314.3,3.0344315]
[1757457190771,0.7047,4314.4,4314.2,2.0841315]
[1757457190772,0.2928,4314.3,4314.2,2.0841315]
[1757457190976,0.4119,4313.9,4313.8,2.3171315]
[1757457191170,0.7047,4313.9,4313.8,0.233]
[1757457191670,0.7047,4313.9,4313.7,2.0841315]
[1757457191873,0.52461,4313.8,4313.7,1.65950754]
[1757457192072,0.52461,4313.8,4312.8,0.3113]
[1757457192073,0.2928,4313.6,4313.4,1.65950754]
[1757457192392,0.2928,4313.6,4312.8,0.3113]
[1757457192393,0.7047,4313.3,4313.2,1.65950754]
[1757457193075,0.7047,4313.3,4313.1,1.65950754]
[1757457193278,0.2928,4313.2,4313.1,1.65950754]
[1757457193469,0.7047,4313.2,4313.1,1.65950754]